fUSD/lending_fUSD_20251129
["ID","MTS","AMOUNT","RATE_DAILY","PERIOD"]
[395086465,1764414646557,-200.0,0.00015351,2]
[395086466,1764414646566,-297.34550459,0.00015351,2]
[395086467,1764414646575,-500.0,0.00015351,2]
[395086468,1764414646585,-600.0,0.00015396,2]
[395086469,1764414646594,-897.72,0.000154,2]
[395086470,1764414646603,-235.21,0.00015422,2]
[395086471,1764414646612,-150.0,0.00015442,2]
[395086472,1764414646621,-150.0,0.00015442,2]
[395086473,1764414646630,-1348.0,0.0001545,2]
[395086474,1764414646640,-686.0,0.00015481,2]
[395086475,1764414646649,-408.0,0.00015512,2]
[395086476,1764414646658,-699.0,0.00015542,2]
[395086477,1764414646668,-150.0,0.00015571,2]
[395086478,1764414646677,-199.0,0.00015573,2]
[395086479,1764414646686,-150.0,0.00015597,2]
[395086480,1764414646699,-150.0,0.00015597,2]
[395086481,1764414646708,-1139.0,0.00015604,2]
[395086482,1764414646717,-150.0,0.00015627,2]
[395086483,1764414646727,-150.0,0.00015627,2]
[395086484,1764414646738,-1244.0,0.00015635,2]
[395086485,1764414646747,-964.0,0.00015666,2]
[395086486,1764414646756,-600.0,0.0001567,2]
[395086487,1764414646765,-897.72,0.00015674,2]
[395086488,1764414646777,-313.21,0.00015677,2]
[395086489,1764414646786,-1224.0,0.00015697,2]
[395086490,1764414646795,-437.43,0.00015713,2]
[395086491,1764414646804,-1726.0,0.00015727,2]
[395086492,1764414646813,-150.0,0.00015751,2]
[395086493,1764414646822,-150.0,0.00015751,2]
[395086494,1764414646832,-473.0,0.00015758,2]
[395086495,1764414646841,-1895.0,0.00015789,2]
[395086496,1764414646851,-11129.20210009,0.00015854,2]
[395086497,1764414646860,-4717.93760015,0.00015854,2]
[395086498,1764414646870,-150.0,0.00015854,2]
[395086499,1764414646881,-200.0,0.00015899,2]
[395086500,1764414646891,-500.0,0.00015899,2]
[395086501,1764414646900,-150.0,0.00015905,2]
[395086502,1764414646909,-150.0,0.00015905,2]
[395086503,1764414646919,-600.0,0.00015944,2]
[395086504,1764414646929,-897.72,0.00015948,2]
[395086505,1764414646938,-150.0,0.00015967,2]
[395086506,1764414646947,-150.0,0.00015967,2]
[395086507,1764414646955,-500.0,0.00015973,2]
[395086508,1764414646964,-500.0,0.00015973,2]
[395086509,1764414646973,-500.0,0.00015973,2]
[395086510,1764414646982,-517.94813083,0.00015973,2]
[395086511,1764414646991,-283.83511784,0.00015973,2]
[395086512,1764414647000,-500.0,0.00015973,2]
[395086513,1764414647010,-500.0,0.00015973,2]
[395086514,1764414647019,-500.0,0.00015973,2]
[395086515,1764414647028,-500.0,0.00015973,2]
[395086516,1764414647037,-500.0,0.00015973,2]
[395086517,1764414647046,-500.0,0.00015973,2]
[395086518,1764414647056,-200.84077125,0.00015973,2]
[395086519,1764414647065,-500.0,0.00015973,2]
[395086520,1764414647073,-500.0,0.00015973,2]
[395086521,1764414647083,-500.0,0.00015973,2]
[395086522,1764414647091,-500.0,0.00015973,2]
[395086523,1764414647100,-500.0,0.00015973,2]
[395086524,1764414647109,-500.0,0.00015973,2]
[395086525,1764414647118,-1140.74359,0.00015993,2]
[395086526,1764414647127,-1290.2158733,0.00016016,2]
[395086527,1764414647136,-150.0,0.0001606,2]
[395086528,1764414647145,-150.0,0.0001606,2]
[395086529,1764414647154,-248.12344906,0.00016115,2]
[395086530,1764414647163,-150.0,0.00016137,2]
[395086531,1764414647172,-604.0,0.00016144,2]
[395086532,1764414647181,-420.0,0.00016164,2]
[395086533,1764414647190,-420.0,0.00016164,2]
[395086534,1764414647200,-150.0,0.00016214,2]
[395086535,1764414647209,-150.0,0.00016214,2]
[395086536,1764414647218,-600.0,0.00016218,2]
[395086537,1764414647228,-200.0,0.0001622,2]
[395086538,1764414647236,-195.0,0.00016222,2]
[395086539,1764414647246,-320.95670199,0.00016222,2]
[395086540,1764414647255,-250.0,0.00016222,2]
[395086541,1764414647264,-897.72,0.00016222,2]
[395086542,1764414647272,-195.0,0.00016223,2]
[395086543,1764414647281,-250.0,0.00016223,2]
[395086544,1764414647290,-1680.0,0.00016243,2]
[395086545,1764414647299,-1321.0,0.00016274,2]
[395086546,1764414647308,-1603.0,0.00016274,2]
[395086547,1764414647317,-3441.0,0.00016274,2]
[395086548,1764414647326,-610.0,0.00016274,2]
[395086549,1764414647335,-640.0,0.00016274,2]
[395086550,1764414647345,-1258.0,0.00016274,2]
[395086551,1764414647354,-6505.0,0.00016274,2]
[395086552,1764414647363,-2718.0,0.00016274,2]
[395086553,1764414647374,-562.0,0.00016274,2]
[395086554,1764414647383,-150.0,0.00016307,2]
[395086555,1764414647393,-150.0,0.00016307,2]
[395086556,1764414647402,-150.0,0.00016369,2]
[395086557,1764414647411,-150.0,0.00016369,2]
[395086558,1764414647420,-227.0,0.000164,2]
[395086559,1764414647429,-318.0,0.000164,2]
[395086560,1764414647439,-182.0,0.000164,2]
[395086561,1764414647453,-183.05059022,0.000164,2]
[395086562,1764414647463,-250.0,0.00016409,2]
[395086563,1764414647471,-200.0,0.00016409,2]
[395086564,1764414647481,-151.0,0.00016409,2]
[395086565,1764414647490,-150.728,0.00016409,2]
[395086566,1764414647499,-210.0,0.00016409,2]
[395086567,1764414647508,-150.868,0.00016409,2]
[395086568,1764414647517,-264.613,0.00016409,2]
[395086569,1764414647526,-193.07,0.00016409,2]
[395086570,1764414647536,-150.129,0.00016409,2]
[395086571,1764414647545,-151.048,0.00016409,2]
[395086572,1764414647554,-189.685,0.00016409,2]
[395086573,1764414647563,-210.74,0.00016409,2]
[395086574,1764414647572,-250.0,0.00016409,2]
[395086575,1764414647581,-250.0,0.00016409,2]
[395086576,1764414647590,-163.0,0.00016409,2]
[395086577,1764414647599,-224.103,0.00016409,2]
[395086578,1764414647608,-346.56946436,0.00016419,7]
[395086579,1764414647618,-150.0,0.0001642,2]
[395086580,1764414647627,-525.37622561,0.00016437,2]
[395086581,1764414647636,-500.0,0.00016437,2]
[395086582,1764414647646,-6044.41,0.00016438,2]
[395086583,1764414647655,-5369.57,0.00016438,2]
[395086584,1764414647665,-800.0,0.00016438,2]
[395086585,1764414647674,-222.35215359,0.00016447,2]
[395086586,1764414647684,-600.0,0.00016492,2]
[395086587,1764414647695,-897.72,0.00016496,2]
[395086588,1764414647705,-313.21,0.00016502,2]
[395086589,1764414647715,-1000.0,0.00016521,2]
[395086590,1764414647724,-1000.0,0.00016521,2]
[395086591,1764414647733,-1000.0,0.00016521,2]
[395086592,1764414647743,-1000.0,0.00016521,2]
[395086593,1764414647752,-505.34047278,0.00016521,2]
[395086594,1764414647762,-688.49303594,0.00016521,2]
[395086595,1764414647771,-1000.0,0.00016521,2]
[395086596,1764414647780,-1000.0,0.00016521,2]
[395086597,1764414647789,-1000.0,0.00016521,2]
[395086598,1764414647798,-1000.0,0.00016521,2]
[395086599,1764414647808,-1000.0,0.00016521,2]
[395086600,1764414647817,-1000.0,0.00016521,2]
[395086601,1764414647826,-150.0,0.00016523,2]
[395086602,1764414647836,-150.0,0.00016523,2]
[395086603,1764414647845,-1000.0,0.00016626,2]
[395086604,1764414647854,-150.0,0.00016647,2]
[395086605,1764414647864,-150.0,0.00016647,2]
[395086606,1764414647873,-150.0,0.00016677,2]
[395086607,1764414647882,-150.0,0.00016677,2]
[395086608,1764414647891,-150.0,0.00016703,2]
[395086609,1764414647900,-176.06,0.00016712,2]
[395086610,1764414647909,-300.0,0.00016727,2]
[395086611,1764414647918,-300.0,0.00016728,2]
[395086612,1764414647927,-300.0,0.00016733,2]
[395086613,1764414647937,-300.0,0.00016734,2]
[395086614,1764414647946,-300.0,0.00016734,2]
[395086615,1764414647955,-300.0,0.00016734,2]
[395086616,1764414647965,-300.0,0.00016736,2]
[395086617,1764414647973,-1000.0,0.00016738,2]
[395086618,1764414647982,-300.0,0.00016742,2]
[395086619,1764414647993,-300.0,0.00016742,2]
[395086620,1764414648002,-300.0,0.00016743,2]
[395086621,1764414648012,-300.0,0.00016746,2]
[395086622,1764414648020,-1000.0,0.00016748,2]
[395086623,1764414648030,-300.0,0.0001675,2]
[395086624,1764414648039,-1000.0,0.00016751,2]
[395086625,1764414648048,-300.0,0.00016753,2]
[395086626,1764414648058,-1000.0,0.00016754,2]
[395086627,1764414648067,-300.0,0.00016755,2]
[395086628,1764414648076,-300.0,0.00016756,2]
[395086629,1764414648085,-1000.0,0.00016756,2]
[395086630,1764414648094,-1000.0,0.00016757,2]
[395086631,1764414648104,-300.0,0.00016757,2]
[395086632,1764414648113,-1000.0,0.0001676,2]
[395086633,1764414648122,-300.0,0.00016761,2]
[395086634,1764414648132,-300.0,0.00016764,2]
[395086635,1764414648141,-300.0,0.00016765,2]
[395086636,1764414648151,-300.0,0.00016766,2]
[395086637,1764414648160,-600.0,0.00016766,2]
[395086638,1764414648170,-300.0,0.00016767,2]
[395086639,1764414648179,-300.0,0.00016769,2]
[395086640,1764414648188,-897.72,0.0001677,2]
[395086641,1764414648197,-300.0,0.00016772,2]
[395086642,1764414648206,-300.0,0.00016772,2]
[395086643,1764414648215,-300.0,0.00016773,2]
[395086644,1764414648225,-300.0,0.00016776,2]
[395086645,1764414648234,-1000.0,0.0001678,2]
[395086646,1764414648244,-300.0,0.00016782,2]
[395086647,1764414648254,-211.27198378,0.00016783,2]
[395086648,1764414648265,-300.0,0.00016787,2]
[395086649,1764414648274,-150.0,0.00016789,2]
[395086650,1764414648283,-300.0,0.0001679,2]
[395086651,1764414648292,-300.0,0.00016792,2]
[395086652,1764414648301,-1000.0,0.00016792,2]
[395086653,1764414648310,-300.0,0.00016793,2]
[395086654,1764414648320,-300.0,0.00016794,2]
[395086655,1764414648329,-300.0,0.00016797,2]
[395086656,1764414648338,-1000.0,0.00016797,2]
[395086657,1764414648347,-1000.0,0.000168,2]
[395086658,1764414648357,-300.0,0.000168,2]
[395086659,1764414648366,-1000.0,0.00016801,2]
[395086660,1764414648375,-150.0,0.00016802,2]
[395086661,1764414648385,-300.0,0.00016806,2]
[395086662,1764414648394,-300.0,0.00016811,2]
[395086663,1764414648403,-150.0,0.00016816,2]
[395086664,1764414648413,-300.0,0.00016816,2]
[395086665,1764414648422,-300.0,0.00016819,2]
[395086666,1764414648431,-300.0,0.00016821,2]
[395086667,1764414648440,-300.0,0.00016821,2]
[395086668,1764414648449,-280.71156822,0.00016826,2]
[395086669,1764414648459,-150.0,0.00016832,2]
[395086670,1764414648468,-150.0,0.00016832,2]
[395086671,1764414648478,-151.0,0.00016832,2]
[395086672,1764414648487,-1000.0,0.00016832,2]
[395086673,1764414648496,-151.0,0.00016832,2]
[395086674,1764414648505,-500.0,0.00016832,2]
[395086675,1764414648515,-500.0,0.00016832,2]
[395086676,1764414648524,-500.0,0.00016832,2]
[395086677,1764414648534,-500.0,0.00016832,2]
[395086678,1764414648543,-500.0,0.00016832,2]
[395086679,1764414648552,-500.0,0.00016832,2]
[395086680,1764414648561,-500.0,0.00016832,2]
[395086681,1764414648571,-300.0,0.00016832,2]
[395086682,1764414648580,-500.0,0.00016832,2]
[395086683,1764414648589,-500.0,0.00016832,2]
[395086684,1764414648598,-500.0,0.00016832,2]
[395086685,1764414648607,-500.0,0.00016832,2]
[395086686,1764414648616,-500.0,0.00016832,2]
[395086687,1764414648626,-500.0,0.00016832,2]
[395086688,1764414648635,-500.0,0.00016832,2]
[395086689,1764414648645,-500.0,0.00016832,2]
[395086690,1764414648654,-500.0,0.00016832,2]
[395086691,1764414648663,-500.0,0.00016832,2]
[395086692,1764414648672,-500.0,0.00016832,2]
[395086693,1764414648682,-500.0,0.00016832,2]
[395086694,1764414648693,-500.0,0.00016832,2]
[395086695,1764414648703,-500.0,0.00016832,2]
[395086696,1764414648713,-500.0,0.00016832,2]
[395086697,1764414648722,-500.0,0.00016832,2]
[395086698,1764414648731,-500.0,0.00016832,2]
[395086699,1764414648741,-500.0,0.00016832,2]
[395086700,1764414648750,-500.0,0.00016832,2]
[395086701,1764414648759,-500.0,0.00016832,2]
[395086702,1764414648769,-500.0,0.00016832,2]
[395086703,1764414648779,-500.0,0.00016832,2]
[395086704,1764414648788,-500.0,0.00016832,2]
[395086705,1764414648798,-620.0,0.00016832,2]
[395086706,1764414648807,-500.0,0.00016832,2]
[395086707,1764414648816,-500.0,0.00016832,2]
[395086708,1764414648825,-500.0,0.00016832,2]
[395086709,1764414648834,-500.0,0.00016832,2]
[395086710,1764414648843,-500.0,0.00016832,2]
[395086711,1764414648853,-500.0,0.00016832,2]
[395086712,1764414648862,-500.0,0.00016832,2]
[395086713,1764414648871,-500.0,0.00016832,2]
[395086714,1764414648881,-500.0,0.00016832,2]
[395086715,1764414648890,-500.0,0.00016832,2]
[395086716,1764414648899,-500.0,0.00016832,2]
[395086717,1764414648907,-500.0,0.00016832,2]
[395086718,1764414648917,-500.0,0.00016832,2]
[395086719,1764414648926,-500.0,0.00016832,2]
[395086720,1764414648935,-500.0,0.00016832,2]
[395086721,1764414648944,-500.0,0.00016832,2]
[395086722,1764414648953,-500.0,0.00016832,2]
[395086723,1764414648962,-500.0,0.00016832,2]
[395086724,1764414648971,-274.04751894,0.00016832,2]
[395086725,1764414648979,-382.0011413,0.00016832,2]
[395086726,1764414648989,-267.46074303,0.00016832,2]
[395086727,1764414648998,-1994.6885148,0.00016832,2]
[395086728,1764414649006,-161.71183343,0.00016833,2]
[395086729,1764414649015,-300.0,0.00016836,2]
[395086730,1764414649024,-300.0,0.00016841,2]
[395086731,1764414649033,-300.0,0.00016842,2]
[395086732,1764414649042,-300.0,0.00016845,2]
[395086733,1764414649052,-1000.0,0.00016845,2]
[395086734,1764414649060,-300.0,0.00016847,2]
[395086735,1764414649069,-198.87899676,0.00016847,2]
[395086736,1764414649078,-300.0,0.00016848,2]
[395086737,1764414649087,-300.0,0.0001685,2]
[395086738,1764414649096,-1000.0,0.00016851,2]
[395086739,1764414649105,-1000.0,0.00016851,2]
[395086740,1764414649114,-1000.0,0.00016851,2]
[395086741,1764414649123,-300.0,0.00016852,2]
[395086742,1764414649132,-300.0,0.00016852,2]
[395086743,1764414649141,-300.0,0.00016853,2]
[395086744,1764414649150,-300.0,0.00016856,2]
[395086745,1764414649159,-300.0,0.00016857,2]
[395086746,1764414649168,-300.0,0.00016858,2]
[395086747,1764414649177,-300.0,0.00016861,2]
[395086748,1764414649186,-1000.0,0.00016862,2]
[395086749,1764414649195,-300.0,0.00016863,2]
[395086750,1764414649204,-300.0,0.00016867,2]
[395086751,1764414649213,-1000.0,0.00016868,2]
[395086752,1764414649222,-1000.0,0.00016868,2]
[395086753,1764414649231,-3398.1564948,0.00016879,2]
[395086754,1764414649240,-1000.0,0.00016879,2]
[395086755,1764414649249,-1000.0,0.00016881,2]
[395086756,1764414649258,-1000.0,0.00016882,2]
[395086757,1764414649267,-1000.0,0.00016882,2]
[395086758,1764414649276,-300.0,0.00016888,2]
[395086759,1764414649284,-300.0,0.00016888,2]
[395086760,1764414649293,-300.0,0.00016889,2]
[395086761,1764414649303,-300.0,0.00016895,2]
[395086762,1764414649311,-160.20928469,0.00016896,2]
[395086763,1764414649320,-300.0,0.00016898,2]
[395086764,1764414649330,-300.0,0.00016899,2]
[395086765,1764414649340,-603.2435,0.000169,2]
[395086766,1764414649350,-300.0,0.00016901,2]
[395086767,1764414649359,-300.0,0.00016902,2]
[395086768,1764414649368,-1000.0,0.00016903,2]
[395086769,1764414649377,-300.0,0.00016905,2]
[395086770,1764414649386,-300.0,0.00016911,2]
[395086771,1764414649395,-1000.0,0.00016918,2]
[395086772,1764414649404,-1000.0,0.00016918,2]
[395086773,1764414649413,-300.0,0.00016921,2]
[395086774,1764414649422,-300.0,0.00016922,2]
[395086775,1764414649431,-300.0,0.00016922,2]
[395086776,1764414649439,-150.0,0.00016923,2]
[395086777,1764414649448,-300.0,0.00016927,2]
[395086778,1764414649458,-1000.0,0.00016927,2]
[395086779,1764414649467,-300.0,0.0001693,2]
[395086780,1764414649477,-300.0,0.00016931,2]
[395086781,1764414649486,-300.0,0.00016931,2]
[395086782,1764414649496,-300.0,0.00016935,2]
[395086783,1764414649506,-1000.0,0.00016935,2]
[395086784,1764414649515,-235.21,0.00016935,2]
[395086785,1764414649524,-300.0,0.00016935,2]
[395086786,1764414649534,-300.0,0.00016936,2]
[395086787,1764414649543,-300.0,0.00016936,2]
[395086788,1764414649552,-300.0,0.00016937,2]
[395086789,1764414649561,-1000.0,0.00016939,2]
[395086790,1764414649570,-1000.0,0.00016941,2]
[395086791,1764414649579,-300.0,0.00016941,2]
[395086792,1764414649588,-1000.0,0.00016943,2]
[395086793,1764414649597,-300.0,0.00016945,2]
[395086794,1764414649606,-300.0,0.00016946,2]
[395086795,1764414649616,-300.0,0.00016947,2]
[395086796,1764414649625,-300.0,0.00016947,2]
[395086797,1764414649634,-1000.0,0.00016949,2]
[395086798,1764414649643,-1000.0,0.00016949,2]
[395086799,1764414649653,-300.0,0.00016954,2]
[395086800,1764414649662,-300.0,0.00016954,2]
[395086801,1764414649672,-300.0,0.00016956,2]
[395086802,1764414649681,-437.43,0.00016958,2]
[395086803,1764414649693,-7455.03816524,0.0001696,2]
[395086804,1764414649712,-3674.16393485,0.0001696,2]
[395086805,1764414649721,-4717.93760015,0.0001696,2]
[395086806,1764414649730,-300.0,0.00016965,2]
[395086807,1764414649740,-300.0,0.00016965,2]
[395086808,1764414649749,-300.0,0.00016966,2]
[395086809,1764414649759,-300.0,0.00016967,2]
[395086810,1764414649768,-217.40010715,0.00016973,2]
[395086811,1764414649777,-500.0,0.00016973,2]
[395086812,1764414649787,-500.0,0.00016973,2]
[395086813,1764414649796,-500.0,0.00016973,2]
[395086814,1764414649805,-569.88588045,0.00016973,2]
[395086815,1764414649814,-500.0,0.00016973,2]
[395086816,1764414649823,-500.0,0.00016973,2]
[395086817,1764414649832,-500.0,0.00016973,2]
[395086818,1764414649842,-501.4742826,0.00016973,2]
[395086819,1764414649851,-500.0,0.00016973,2]
[395086820,1764414649860,-500.0,0.00016973,2]
[395086821,1764414650094,-500.2924213,0.00016973,2]
[395086822,1764414650106,-500.0,0.00016973,2]
[395086823,1764414650115,-500.0,0.00016973,2]
[395086824,1764414650125,-500.0,0.00016973,2]
[395086825,1764414650135,-500.0,0.00016973,2]
[395086826,1764414650145,-500.0,0.00016973,2]
[395086827,1764414650154,-500.0,0.00016973,2]
[395086828,1764414650164,-500.0,0.00016973,2]
[395086829,1764414650175,-506.88790336,0.00016973,2]
[395086830,1764414650183,-500.0,0.00016973,2]
[395086831,1764414650193,-503.73726624,0.00016973,2]
[395086832,1764414650204,-500.0,0.00016973,2]
[395086833,1764414650214,-500.0,0.00016973,2]
[395086834,1764414650225,-500.0,0.00016973,2]
[395086835,1764414650235,-500.0,0.00016973,2]
[395086836,1764414650244,-500.0,0.00016973,2]
[395086837,1764414650254,-500.0,0.00016973,2]
[395086838,1764414650263,-500.0,0.00016973,2]
[395086839,1764414650272,-1000.0,0.00016973,2]
[395086840,1764414650281,-300.0,0.00016978,2]
[395086841,1764414650291,-300.0,0.00016981,2]
[395086842,1764414650300,-300.0,0.00016982,2]
[395086843,1764414650310,-500.0,0.00016983,2]
[395086844,1764414650320,-1000.0,0.00016986,2]
[395086845,1764414650330,-150.0,0.00016986,2]
[395086846,1764414650339,-150.0,0.00016986,2]
[395086847,1764414650349,-150.0,0.00016986,2]
[395086848,1764414650358,-150.0,0.00016986,2]
[395086849,1764414650368,-150.0,0.00016986,2]
[395086850,1764414650377,-157.11036066,0.00016986,2]
[395086851,1764414650386,-150.0,0.00016986,2]
[395086852,1764414650395,-150.0,0.00016986,2]
[395086853,1764414650404,-300.0,0.00016987,2]
[395086854,1764414650414,-300.0,0.00016988,2]
[395086855,1764414650424,-300.0,0.0001699,2]
[395086856,1764414650433,-300.0,0.0001699,2]
[395086857,1764414650442,-28675.72794206,0.00016992,2]
[395086858,1764414650453,-36156.2999997,0.00016992,2]
[395086859,1764414653748,-254.64,0.00016274,2]
[395086860,1764414653759,-292.276,0.00016992,2]
[395086861,1764414653771,-15678.43094844,0.00016992,2]
[395086862,1764414653782,-924.82002176,0.00016996,2]
[395086863,1764414653792,-300.0,0.00016997,2]
[395086864,1764414653802,-500.0,0.00016999,2]
[395086865,1764414653812,-520.83324818,0.00016999,2]
[395086866,1764414653822,-300.0,0.00016999,2]
[395086867,1764414653832,-307.29201946,0.00016999,2]
[395086868,1764414653842,-672805.45949434,0.00017,2]
[395086869,1764414653886,-16819.98374751,0.00017,2]
[395086870,1764414653939,-1307.24831174,0.00017,2]
[395086871,1764414654087,-5299.75401172,0.00017,2]
[395086872,1764414654152,-23771.47300657,0.00017,2]
[395086873,1764414658103,-500.0,0.00016973,2]
[395086874,1764414658113,-567.39340541,0.00017,2]
[395086875,1764414658382,-390704.74328217,0.00017,2]
[395086876,1764414658416,-1137.79536712,0.00017,2]
[395086893,1764414661013,-740.46796765,0.000159,2]
[395086894,1764414663787,10000.01,0.00014674,2]
[395086895,1764414663809,3281.371055,0.00014674,2]
[395086948,1764414724770,337.97419526,0.00014747,2]
[395086950,1764414724860,500.0,0.00014747,2]
[395086951,1764414724922,580.98767402,0.00014747,2]
[395086952,1764414724961,500.0,0.00014747,2]
[395086953,1764414725005,500.0,0.00014747,2]
[395086955,1764414725079,500.0,0.00014747,2]
[395086956,1764414725196,500.0,0.00014747,2]
[395086957,1764414725253,157.37020261,0.00014747,2]
[395086958,1764414725375,500.0,0.00014747,2]
[395086961,1764414725448,500.0,0.00014747,2]
[395086962,1764414725512,500.0,0.00014747,2]
[395087007,1764414741684,-228.55288944,0.00014847,2]
[395087008,1764414744780,-154.45214202,0.00014847,2]
[395087009,1764414747255,-116.99496854,0.00014847,2]
[395087010,1764414747276,-183.00503146,0.00014847,2]
[395087011,1764414750515,-245.70581276,0.00014847,2]
[395087012,1764414753144,-211.00921396,0.00014847,2]
[395087013,1764414753165,-4.42364956,0.00014847,2]
[395087014,1764414756430,-162.99238427,0.00014747,2]
[395087015,1764414762232,-300.0,0.00014747,2]
[395087016,1764414765665,-37.00761573,0.00014747,2]
[395087017,1764414765691,-123.57922671,0.00014747,2]
[395087018,1764414770751,-269.0,0.00014747,2]
[395087019,1764414773968,-239.70283635,0.00014746,2]
[395087020,1764414774520,-116.29716365,0.00014746,2]
[395087021,1764414776061,-212.0,0.00014847,2]
[395087022,1764414777464,-283.57635044,0.00014847,2]
[395087023,1764414777484,-89.77580315,0.00014847,2]
[395087024,1764414779883,-410.22419685,0.00014847,2]
[395087025,1764414779907,-159.29900526,0.00014847,2]
[395087028,1764414783063,-300.0,0.00014847,2]
[395087035,1764414785043,-40.70099474,0.00014847,2]
[395087036,1764414785069,-115.55566249,0.00014847,2]
[395087037,1764414789233,-168.0,0.00014847,2]
[395087038,1764414793517,-195.0,0.00014847,2]
[395087039,1764414794991,-21.44433751,0.00014847,2]
[395087040,1764414795015,-172.62852235,0.00014847,2]
[395087041,1764414800786,-300.0,0.00014847,2]
[395087042,1764414803209,-27.37147765,0.00014847,2]
[395087043,1764414803231,-245.75646741,0.00014847,2]
[395087044,1764414803253,-90.38802524,0.00014847,2]
[395087045,1764414805025,-409.61197476,0.00014847,2]
[395087046,1764414805054,-151.0,0.00014856,2]
[395087047,1764414805084,-151.0,0.00014856,2]
[395087048,1764414805113,-151.0,0.00014856,2]
[395087049,1764414805142,-151.0,0.00014856,2]
[395087050,1764414805172,-151.0,0.00014856,2]
[395087051,1764414805202,-151.0,0.00014856,2]
[395087052,1764414805231,-151.0,0.00014856,2]
[395087053,1764414805259,-151.0,0.00014856,2]
[395087054,1764414805290,-151.0,0.00014856,2]
[395087055,1764414805322,-151.0,0.00014856,2]
[395087056,1764414805350,-151.0,0.00014856,2]
[395087057,1764414805378,-151.0,0.00014856,2]
[395087058,1764414805409,-151.0,0.00014856,2]
[395087059,1764414805437,-500.0,0.00014856,2]
[395087060,1764414805465,-200.0,0.00014856,2]
[395087061,1764414805492,-173.21142824,0.00014856,2]
[395087062,1764414805521,-529.43708906,0.00014856,2]
[395087063,1764414805549,-200.0,0.00014856,2]
[395087064,1764414805576,-151.0,0.00014856,2]
[395087065,1764414805604,-151.0,0.00014856,2]
[395087066,1764414805632,-151.0,0.00014856,2]
[395087067,1764414805660,-151.0,0.00014856,2]
[395087068,1764414805689,-151.0,0.00014856,2]
[395087069,1764414805717,-151.0,0.00014856,2]
[395087070,1764414805746,-86.48901588,0.00014856,2]
[395087071,1764414807523,-64.51098412,0.00014856,2]
[395087072,1764414807543,-120.05145843,0.00014856,2]
[395087073,1764414808833,-30.94854157,0.00014856,2]
[395087074,1764414808861,-151.0,0.00014856,2]
[395087075,1764414808889,-151.0,0.00014856,2]
[395087076,1764414808921,-151.0,0.00014856,2]
[395087077,1764414808949,-151.0,0.00014856,2]
[395087078,1764414808977,-151.0,0.00014856,2]
[395087079,1764414809005,-151.0,0.00014856,2]
[395087080,1764414809033,-151.0,0.00014856,2]
[395087081,1764414809061,-151.0,0.00014856,2]
[395087082,1764414809089,-151.0,0.00014856,2]
[395087083,1764414809123,-151.0,0.00014856,2]
[395087084,1764414809152,-151.0,0.00014856,2]
[395087085,1764414809179,-151.0,0.00014856,2]
[395087089,1764414975432,310.52351775,0.00014847,2]
[395087090,1764415097473,3291.3113699,0.00014854,2]
[395087091,1764415108283,500.0,0.00014849,2]